Cogmind - Beta 12 @@@ ROGUE MODE // 2023.07.15 @ 08:13:49 Player: javashane Result: Destroyed by D-53 Grenadier with Mini Grenade Launcher Performance ------------- Evolutions (1) 500 Regions Visited (3) 600 Robots Destroyed (21) 105 Value Destroyed (390) 390 Prototype IDs (0) 0 Alien Tech Used (0) 0 Bonus (-29) -29 TOTAL SCORE: 1566 Bonus ------- Friendly Fire -29 Cogmind --------- Core Integrity 0/400 Matter 77/300 Energy 100/100 System Corruption 7% Temperature Cool (0) Movement Core (100) Ox1 Location -9/Mines Parts ------- > --- POWER (1) -------- (None) > --- PROPULSION (4) --- (None) > --- UTILITY (2) ------ (None) > --- WEAPON (2) ------- Improved Light Cannon > --- INVENTORY (5) ---- Heat Sink Large Battery (200) Improved Light Cannon Peak State ------------ > --- POWER ------------ Ion Engine > --- PROPULSION ------- Aluminum Leg Aluminum Leg Aluminum Leg Aluminum Leg > --- UTILITY ---------- Heat Sink Medium Storage Unit > --- WEAPON ----------- Improved Light Cannon Improved Light Cannon > --- INVENTORY -------- Ion Engine Light Ion Engine Compact Wheel Compact Wheel Large Battery EM Pulse Gun Assault Rifle Light Assault Rifle Grenade Launcher Datajack [Rating: 12] Favorites ----------- Power Ion Engine Engine Ion Engine Propulsion Aluminum Leg Leg Aluminum Leg Wheel Compact Wheel Flight Unit Flight Unit Utility Medium Storage Unit Device Heat Sink Storage Medium Storage Unit Weapon Improved Light Cannon Energy Gun EM Pulse Gun Ballistic Gun Assault Rifle Ballistic Cannon Improved Light Cannon Launcher Grenade Launcher Build | -11 -10 -9 -9 ------- Run | Jun Mat Mat Min Slots Evolved 2 | . . 2 . Power . | . . . . Propulsion 2 | . . 2 . Utility . | . . . . Weapon . | . . . . Parts Attached 30 | 6 6 8 10 Power 3 | 1 . . 2 Engine 3 | 1 . . 2 Core . | . . . . Reactor . | . . . . Propulsion 12 | 2 2 5 3 Treads . | . . . . Leg 7 | 2 . 4 1 Wheel 3 | . 2 1 . Hover . | . . . . Flight 2 | . . . 2 Utility 4 | 1 2 1 . Device 1 | . 1 . . Storage 3 | 1 1 1 . Processor . | . . . . Hackware . | . . . . Protection . | . . . . Artifact . | . . . . Weapon 11 | 2 2 2 5 Energy Gun 2 | 1 . . 1 Energy Cannon . | . . . . Ballistic Gun 3 | 1 . . 2 Ballistic Cannon 4 | . 2 1 1 Launcher 2 | . . 1 1 Special Weapon . | . . . . Impact Weapon . | . . . . Slashing Weapon . | . . . . Piercing Weapon . | . . . . Special Melee Weapon . | . . . . Unidentified Prototypes . | . . . . Parts Lost 15 | . . . 15 Power 3 | . . . 3 Propulsion 7 | . . . 7 Utility 1 | . . . 1 Weapon 4 | . . . 4 Highest Loss Streak 10 | . . . 10 To Critical Strikes . | . . . . Average Slot Usage (%) 84 | . 94 100 45 Engine 10 | . 14 11 6 Leg 29 | . 23 44 6 Wheel 1 | . 4 . . Flight 1 | . . . 6 Device 7 | . 8 10 . Storage 11 | . 14 11 8 Energy Gun 3 | . 11 . 2 Ballistic Gun 5 | . 11 . 9 Ballistic Cannon 12 | . 4 21 3 Naked Turns . | . . . . Heaviest Build 25 | 14 24 25 25 Greatest Support 40 | 20 32 40 40 Greatest Overweight (x) 3 | 2 . . 3 Average Overweight (x) . | . . . . Largest Inventory Capacity 10 | 8 10 10 10 Average Capacity 8 | 6 8 10 8 Most Carried 10 | 6 10 10 9 Average Carried 7 | 3 7 9 5 Final Capacity 10 | 8 10 10 5 Final Carried 10 | 6 10 9 3 Class Distribution -------------------- 100% | Mutant Dominant Class ---------------- Mutant | -10/Materials Mutant | -9/Materials Mutant | -9/Mines Resources | -11 -10 -9 -9 ----------- Run | Jun Mat Mat Min Matter Collected 682 | 157 110 349 66 Remotely . | . . . . Salvage Created 478 | 12 110 260 96 Parts 44 | 2 6 26 10 Haulers Intercepted 1 | . . 1 . Recyclers Shooed 4 | . . 3 1 Parts Field Recycled . | . . . . Retrieved Matter . | . . . . Parts Self-Destructed . | . . . . Prevented . | . . . . Kills | -11 -10 -9 -9 ------- Run | Jun Mat Mat Min Combat Hostiles Destroyed 29 | . 2 8 19 Guns 6 | . 2 . 4 Cannons 6 | . . 5 1 AOE 17 | . . 3 14 Classes Destroyed 10 | 1 2 6 1 Worker 2 | . . 2 . Builder 1 | . . 1 . Tunneler 2 | 1 . 1 . Hauler 1 | . . 1 . Recycler 1 | . . 1 . Operator 1 | . 1 . . Swarmer 5 | . . 2 3 Grunt 7 | . 2 5 . Duelist 1 | . . 1 . Assembled 16 | . . . 16 Best Kill Streak 19 | 1 2 9 19 Combat Bots Only 19 | . 2 5 19 Max Kills in Single Turn 5 | 1 2 3 5 Gunslinging 1 | . 1 . . Exploded 5 | . . 2 5 Melee . | . . . . Uniques/NPCs Destroyed . | . . . . Combat | -11 -10 -9 -9 -------- Run | Jun Mat Mat Min Damage Taken 1751 | . 78 167 1506 Core 437 | . 11 . 426 Absorbed by Shields . | . . . . Core Remaining (%) 97 | 100 95 . . Volleys Fired 81 | 2 9 35 35 Largest 2 | 2 2 2 2 Hottest 79 | 60 60 78 79 Shots Fired 138 | 4 18 64 52 Gun 52 | 4 18 . 30 Cannon 73 | . . 58 15 Launcher 13 | . . 6 7 Special . | . . . . Kinetic 101 | 2 9 58 32 Thermal . | . . . . Explosive 13 | . . 6 7 Electromagnetic 24 | 2 9 . 13 Robot Hit Streak 9 | 1 4 9 6 Robot Miss Streak 4 | 1 2 4 4 Penetration Max . | . . . . Secondary Targets 1 | . 1 . . Max Gunslinging Chain 1 | . 1 . . Shots Hit Robots 74 | 2 12 33 27 Core Hits 71 | 1 6 18 46 Critical Kills . | . . . . Critical Parts Destroyed . | . . . . Critical Strikes 1 | . . 1 . Blast 1 | . . 1 . Melee Attacks . | . . . . Impact . | . . . . Slashing . | . . . . Piercing . | . . . . Sneak Attacks . | . . . . Combat Hostiles . | . . . . Follow-up Attacks . | . . . . Damage Inflicted 2521 | 26 178 1128 1189 Guns 342 | 26 154 . 162 Cannons 918 | . . 778 140 Explosions 1260 | . 24 350 886 Melee . | . . . . Ramming 1 | . . . 1 Kinetic 1096 | 14 87 778 217 Thermal 24 | . 24 . . Explosive 1236 | . . 350 886 Electromagnetic 164 | 12 67 . 85 Impact . | . . . . Slashing . | . . . . Piercing . | . . . . Highest Corruption 7 | . . . 7 Average Corruption 4 | . . . 4 Corruption Purged . | . . . . Corruption Blocked . | . . . . Effects 3 | . . . 3 Message Errors 1 | . . . 1 Matter Fused 1 | . . . 1 Energy Discharges 1 | . . . 1 Overload Shots . | . . . . Overflow Damage 62 | . . 11 51 Projectiles 27 | . . 11 16 Explosions 35 | . . . 35 Melee . | . . . . Knockbacks 12 | . . 7 5 Impact . | . . . . Kinetic 10 | . . 6 4 Secondary 2 | . . 1 1 Self-Inflicted Damage 64 | . . . 64 Shots 4 | . . . 4 Rammed 2 | . . . 2 Targets Rammed 2 | . . . 2 Kicked . | . . . . Crushed . | . . . . Highest Temperature 81 | . 42 5 81 Average Temperature 33 | . 28 5 36 Received Heat Transfer 202 | . 42 60 100 Siege Activations . | . . . . Robots Corrupted . | . . . . Combat Hostiles . | . . . . Parts Fried . | . . . . Impact Corruptions . | . . . . Robots Melted . | . . . . Combat Hostiles . | . . . . Parts Melted . | . . . . Heat Transferred 50 | . 50 . . Parts Sabotaged . | . . . . Parts Stolen . | . . . . Parts Stripped . | . . . . Power Chain Reactions 1 | . 1 . . Missiles Intercepted . | . . . . Alert | -11 -10 -9 -9 ------- Run | Jun Mat Mat Min Peak Influence 325 | 5 59 325 219 Initial 126 | . 3 24 126 Average 90 | 4 43 106 142 Maximum Alert Level 1 | . . 1 1 Low Security (%) 89 | 100 100 81 92 Level 1 10 | . . 18 7 Level 2 . | . . . . Level 3 . | . . . . Level 4 . | . . . . Level 5 . | . . . . High Security . | . . . . Max Security . | . . . . Squads Dispatched 4 | . 1 3 . Investigation 1 | . . 1 . Extermination . | . . . . Reinforcement 3 | . 1 2 . Assault . | . . . . Garrison . | . . . . Intercept . | . . . . Searches Triggered . | . . . . Construction Impeded 1 | . . 1 . Haulers Reinforced . | . . . . Active Scanning Responses . | . . . . Cargo Convoy Interrupts . | . . . . Stealth | -11 -10 -9 -9 --------- Run | Jun Mat Mat Min Distress Signals 2 | . . 1 1 Communications Jammed . | . . . . Distress Signals . | . . . . Times Spotted 42 | . 3 14 25 Peak Tracking Total 19 | . 2 5 19 Tactical Retreats 1 | . . . 1 Traps | -11 -10 -9 -9 ------- Run | Jun Mat Mat Min Traps Triggered 1 | . . 1 . Indirectly . | . . . . Trap Hack Attempts . | . . . . Triggered . | . . . . Disarmed . | . . . . Reprogrammed . | . . . . Reused . | . . . . Traps Extracted . | . . . . Installed . | . . . . Triggered . | . . . . Machines | -11 -10 -9 -9 ---------- Run | Jun Mat Mat Min Machines Disabled 2 | . . 2 . Max in Single Turn 1 | . . 1 . Machines Repaired . | . . . . Machines Sabotaged . | . . . . Overloaded Fab Kills . | . . . . Hacking | -11 -10 -9 -9 --------- Run | Jun Mat Mat Min Machines Accessed . | . . . . Terminals . | . . . . Fabricators . | . . . . Repair Stations . | . . . . Recycling Units . | . . . . Scanalyzers . | . . . . Garrison Access . | . . . . Total Hacks . | . . . . Successful . | . . . . Failed . | . . . . Catastrophic . | . . . . Database Lockouts . | . . . . Manual . | . . . . Terminals . | . . . . Fabricators . | . . . . Repair Stations . | . . . . Recycling Units . | . . . . Scanalyzers . | . . . . Garrison Access . | . . . . Terminal Hacks . | . . . . Fabricator Hacks . | . . . . Repair Station Hacks . | . . . . Recycling Unit Hacks . | . . . . Scanalyzer . | . . . . Garrison Access Hacks . | . . . . Unauthorized Hacks . | . . . . Terminals . | . . . . Fabricators . | . . . . Repair Stations . | . . . . Recycling Units . | . . . . Scanalyzers . | . . . . Garrison Access . | . . . . Data Cores Recovered . | . . . . Used . | . . . . Hacking Detections . | . . . . Full Trace Events . | . . . . Feedback Events . | . . . . Feedback Blocked . | . . . . Robot Schematics Acquired . | . . . . Robots Built . | . . . . Authchips . | . . . . Time . | . . . . Total Robot Build Rating . | . . . . Part Schematics Acquired . | . . . . Parts Built . | . . . . Authchips . | . . . . Time . | . . . . Total Part Build Rating . | . . . . Parts Repaired . | . . . . Time . | . . . . Parts Recycled . | . . . . Recycled Matter . | . . . . Retrieved Matter . | . . . . Retrieved Components . | . . . . Parts Scanalyzed . | . . . . Part Schematics Acquired . | . . . . Parts Damaged . | . . . . Bothacking | -11 -10 -9 -9 ------------ Run | Jun Mat Mat Min Used RIF Installer . | . . . . Robots Hacked . | . . . . Non-combat . | . . . . Combat . | . . . . Robot Hacks Applied . | . . . . Relay Couplers Released . | . . . . Fabnet Peak Effective % . | . . . . Robots Rewired . | . . . . Allies Hacked . | . . . . Hacks Repelled . | . . . . Allies | -11 -10 -9 -9 -------- Run | Jun Mat Mat Min Total Allies . | . . . . Largest Group . | . . . . Highest-Rated Group . | . . . . Highest-Rated Ally . | . . . . Total Orders . | . . . . Ally Attacks . | . . . . Total Damage . | . . . . Kills . | . . . . Allies Corrupted . | . . . . Allies Melted . | . . . . Intel | -11 -10 -9 -9 ------- Run | Jun Mat Mat Min Robot Analysis Total . | . . . . Derelict Logs Recovered . | . . . . Drone Launches . | . . . . Drone Recoveries . | . . . . Exploration | -11 -10 -9 -9 ------------- Run | Jun Mat Mat Min Turns Passed 880 | 94 185 394 207 Spaces Moved 411 | 63 122 151 75 Core 31 | 10 . . 21 Treads . | . . . . Legs 315 | 53 101 151 10 Wheels 21 | . 21 . . Hover . | . . . . Flight 44 | . . . 44 Fastest Speed 37 | 50 100 120 37 Average Speed 114 | 116 116 120 100 Slowest Speed 200 | 150 120 120 200 Overloaded Moves . | . . . . Propulsion Burnouts . | . . . . Robots Hopped . | . . . . Cave-ins Triggered 1 | . . . 1 Exploration Rate (%) 14 | 3 22 18 16 Regions Visited 3 Branch Regions 1 Pre-discovered Areas . | . . . . Known Exits Taken . | . . . . Unknown Exits Taken 3 | 1 1 1 . Scrap Searched . | . . . . Spaces Dug . | . . . . Terrain Destroyed 83 | . 1 40 42 Melee . | . . . . Projectile 2 | . . 2 . AOE 81 | . 1 38 42 Terrain Rammed . | . . . . Walls Destroyed . | . . . . Machines Disabled . | . . . . Actions | -11 -10 -9 -9 --------- Run | Jun Mat Mat Min Total 673 | 77 145 298 153 Wait 128 | . . 98 30 Move 407 | 62 121 150 74 Hop . | . . . . Pick Up 17 | 7 6 4 . Fast Attach 8 | 5 1 . 2 Attach 9 | 1 . 2 6 Detach . | . . . . Swap 13 | . 5 6 2 Drop 7 | . 3 3 1 Fire 81 | 2 9 35 35 Melee . | . . . . Ram 2 | . . . 2 Kick . | . . . . Crush . | . . . . Escape Stasis 1 | . . . 1 Rewire . | . . . . Trap . | . . . . Miscellaneous . | . . . . Route ------- -11/Junkyard -10/Materials -9/Materials -9/Mines History --------- Turn | Location | Event 27 | -11/Junkyard | Discovered new exit (range 16) 95 | -11/Junkyard | Entered Materials 276 | -10/Materials | Discovered new exit (range 3) 280 | -10/Materials | Entered another Materials area 280 | -9/Materials | Evolved 2 slots: Propulsion x2 306 | -9/Materials | Build established: Mutant 602 | -9/Materials | Discovered new exit (range 14) 674 | -9/Materials | Entered Mines 675 | -9/Mines | Assembled infested the area 681 | -9/Mines | Received a Rocket Launcher from a helpful Derelict 778 | -9/Mines | Destroyed 19 combat bots 784 | -9/Mines | Lost 10 parts (2p5n1u2w) 862 | -9/Mines | Core integrity fell below 50% 865 | -9/Mines | Crushed by falling debris 866 | -9/Mines | Core integrity fell below 20% 881 | -9/Mines | Destroyed by D-53 Grenadier with Mini Grenade Launcher Last Messages --------------- 00853_ U-05 Engineer builds a Wall. 00857_ Laser Drill disabled. 00859_ U-05 Engineer lays Concrete. 00862_ U-05 Engineer builds a Wall. 00863_ The unstable cave ceiling collapses. 00865_ Crushed by falling debris. 00865_ Assault Rifle destroyed. 00865_ System corrupted by crushing effect (+2). 00865_ Lgt. Assault Rifle destroyed. 00865_ System corrupted by crushing effect (+1). 00873_ D-53 Grenadier knocked back. 00875_ Destroyed Shock Absorption System. 00876_ F /&O&CWK=OIUQUY1RDX228 %PNUNFMYFWJAY 00876_ U-05 Engineer builds a Wall. 00877_ The unstable cave ceiling collapses. 00877_ D-53 Grenadier destroyed. 00877_ Lgt. Ion Engine destroyed. 00877_ Flight Unit destroyed. 00879_ D-53 Grenadier knocked back. 00880_ U-05 Engineer lays Concrete. Map ----- +----------------------------------------------------+ | ?????????????????????????????????????????????????? | | ?????????????????????????????????????????????????? | | ?????????????????????????????????????????????????? | | ?????????????????????????????????????????????????? | | ?????????????????????????????????????????????????? | | ?????????????????????????????????????????????????? | | ?????????????????????????????????????????????????? | | ?????????????????????????????????????????????????? | | ?????????????????????????????????????????????????? | | ?????????????????????????????????????????????????? | | ?????????????????????????????????????????????????? | | ????????????????????????????????????????????? ?? | | ????????????????????????????????????????????? ?? | | ??????????????????????????????????????????? #? | | ??????????????????????????????????????????? ? | | ??????????????????????????######???????????" ? | | ?????????????????????????## ##?????????? ? | | ?????????????????????????# #?????????? #? | | ?????????????????????????# #??????????? #? | | ????????????????????????## #???????????? #? | | ??????????????????????### ########????? #? | | ?????????????????????## ### #???### ## | | ????????????????????## ## " #???# #% | | ????????????????????# ######### # | | ????????????????????## # # # | | ????????????????????# @ ######### | | ????????????????????# u # | | ????????????????????# ####### | | ????????????????????## # #[#*# # | | ?????????????????????## d # #### # | | ??????????????????????# % ####?# ## | | ??????????????????????# #????## # # | | ??????????????????????# #????# ##### | | ??????????????????????## ## #????# #???? | | ???????????????????????########### ##??### #???? | | ?????????????????????????????????? #???# #???? | | ?????????????????????????????????? #??# ####???? | | ?????????????????????????????????? #??# #??????? | | ?????????????????????????????????? ##??# #??????? | | ?????????????????????????????????? ##???# #??????? | | ??????????????????????????????????##????# #??????? | | ????????????????????????????????????????# ??????? | | ???????????????????????????????????????? ??????? | | ???????????????????????????????????????? ??????? | | ???????????????????????????????????????? ??????? | | ???????????????????????????????????????? ??????? | | ???????????????????????????????????????? ??????? | | ???????????????????????????????????????? ??????? | | ???????????????????????????????????????? ??????? | | ???????????????????????????????????????? ??????? | +----------------------------------------------------+ Best States ------------- Heat Dissipation 38 Energy Generation 10 Energy Capacity 250 Matter Stores 264 Matter Capacity 400 Sight Range 16 Terrain Scan Density 10 Evasion (%) 62 Item Schematics ----------------- None Robot Schematics ------------------ None Fabricated ------------ Nothing Alien Tech Used ----------------- None Achievements -------------- Exterminator Quick And Dirty Challenges ------------ None Game ------ Seed LongswordMassMediator Manual? 0 Play Time 00:16:32 Cumulative 6.5 hours Start 2023.07.15 @ 07:58:22 End 2023.07.15 @ 08:13:49 Sessions 1 Manual Loads 0 Difficulty Rogue Special Mode None Game No. 12 Rogue 11 Adventurer 1 Explorer 0 Win Type - Total 0 Types 0/0/0/0/0/0/0/0/0 Lore% 3 Gallery% 12 Achievement% 14 Wizard Run 0 Options --------- ASCII 0 Keyboard 0 Movement Mouse Keybinds 0 Fullscreen 1 Font 24/Smallcaps Map View 76x50 Tactical HUD 1 Map Filters NONE Filters NONE Steam 1 RUN: ff1a9622-2d8b-43d8-823b-62b08dd0f8e9